[Event "Austria Championship Blitz 2024"]
[Site "Innsbruck"]
[Date "2024.06.01"]
[Round "10.14"]
[White "Casagrande, Harald"]
[Black "Erhard, Jakob"]
[Result "0-1"]
[ECO "A13"]
[WhiteElo "2290"]
[BlackElo "2057"]
[Annotator "RC"]
[PlyCount "96"]
[EventDate "2024.06.01"]
[EventType "swiss"]
[EventCountry "AUT"]
[SourceTitle "playchess.com"]
[Source "ChessBase"]
[SourceQuality "1"]
[TimeControl "180+2"]

1. c4 {[%emt 0:00:01]} e6 {[%emt 0:00:00]} 2. b3 {[%emt 0:00:02]} d5 {[%emt 0:00:01]} 3. Bb2 {[%emt 0:00:01]} Nf6 {[%emt 0:00:01]} 4. g3 {[%emt 0:00:01]} Nc6 {[%emt 0:00:01]} 5. Bg2 {[%emt 0:00:01]} a5 {[%emt 0:00:01]} 6. Nc3 {[%emt 0:00:59]} d4 {[%emt 0:00:01]} 7. Nb5 {[%emt 0:00:01]} e5 {[%emt 0:00:01]} 8. e3 {[%emt 0:00:26]} Bg4 {[%emt 0:00:03]} 9. f3 {[%emt 0:00:21]} Bf5 {[%emt 0:00:06]} 10. e4 {[%emt 0:00:06]} Bg6 {[%emt 0:00:01]} 11. d3 {[%emt 0:00:01]} Bb4+ {[%emt 0:00:04]} 12. Kf2 {[%emt 0:00:05]} O-O {[%emt 0:00:01]} 13. Ne2 {[%emt 0:00:01]} Nb8 {[%emt 0:00:07]} 14. Rf1 {[%emt 0:00:05]} c6 {[%emt 0:00:02]} 15. Na3 {[%emt 0:00:02]} Nbd7 {[%emt 0:00:02]} 16. Nc2 {[%emt 0:00:02]} Bc5 {[%emt 0:00:03]} 17. Kg1 {[%emt 0:00:03]} Qc7 {[%emt 0:00:05]} 18. h3 {[%emt 0:00:07]} Rfe8 {[%emt 0:00:02]} 19. f4 {[%emt 0:00:05]} exf4 {[%emt 0:00:06]} 20. Nxf4 {[%emt 0:00:04]} Rad8 {[%emt 0:00:15]} 21. Kh2 {[%emt 0:00:02]} Ne5 {[%emt 0:00:01]} 22. Qe2 {[%emt 0:00:09]} h5 {[%emt 0:00:01]} 23. Kh1 {[%emt 0:00:11]} Qd7 {[%emt 0:00:13]} 24. a3 {[%emt 0:00:03]} Ba7 {[%emt 0:00:04]} 25. b4 {[%emt 0:00:01]} c5 {[%emt 0:00:05]} 26. bxc5 {[%emt 0:00:07]} Bxc5 {[%emt 0:00:01]} 27. Bc1 {[%emt 0:00:11]} b5 {[%emt 0:00:01]} 28. cxb5 {[%emt 0:00:04]} Qxb5 {[%emt 0:00:01]} 29. Bd2 {[%emt 0:00:05]} Qa6 {[%emt 0:00:03]} 30. a4 {[%emt 0:00:04]} Rb8 {[%emt 0:00:01]} 31. Rab1 {[%emt 0:00:01]} Nc6 {[%emt 0:00:05]} 32. Nxg6 {[%emt 0:00:09]} fxg6 {[%emt 0:00:01]} 33. Bf4 {[%emt 0:00:03]} Rxb1 34. Rxb1 {[%emt 0:00:00]} Nd7 {[%emt 0:00:11]} 35. Rb5 {[%emt 0:00:10]} Bb4 {[%emt 0:00:12]} 36. Nxb4 {[%emt 0:00:06]} axb4 {[%emt 0:00:04]} 37. Qc2 {[%emt 0:00:03]} Nce5 {[%emt 0:00:10]} 38. Bd2 {[%emt 0:00:06]} Qf6 {[%emt 0:00:09]} 39. Bxb4 {[%emt 0:00:02]} h4 {[%emt 0:00:04]} 40. g4 {[%emt 0:00:01]} Qf4 {[%emt 0:00:06]} 41. Rb7 {[%emt 0:00:01]} Re6 {[%emt 0:00:03]} 42. Be1 {[%emt 0:00:02]} g5 {[%emt 0:00:02]} 43. Qf2 {[%emt 0:00:03]} Qc1 {[%emt 0:00:03]} 44. a5 {[%emt 0:00:02]} Rf6 {[%emt 0:00:02]} 45. Qe2 {[%emt 0:00:02]} Nxd3 {[%emt 0:00:03]} 46. Qxd3 {[%emt 0:00:02]} Qxe1+ {[%emt 0:01:45]} 47. Kh2 Ne5 {[%emt 0:00:00]} 48. Qb3+ {[%emt 0:00:03]} Kh7 {[%emt 0:00:00]} 0-1

[Event "Austria Championship Blitz 2024"]
[Site "Innsbruck"]
[Date "2024.06.01"]
[Round "10.15"]
[White "Zanon, Magnus"]
[Black "Khalakhan, Jurij"]
[Result "1-0"]
[ECO "D00"]
[WhiteElo "2092"]
[BlackElo "2175"]
[Annotator "RC"]
[PlyCount "45"]
[EventDate "2024.06.01"]
[EventType "swiss"]
[EventCountry "AUT"]
[SourceTitle "playchess.com"]
[Source "ChessBase"]
[SourceQuality "1"]
[TimeControl "180+2"]

1. d4 {[%emt 0:00:02]} d5 {[%emt 0:00:01]} 2. Bg5 {[%emt 0:00:02]} c6 {[%emt 0:00:04]} 3. Nf3 {[%emt 0:00:03]} Bf5 {[%emt 0:00:01]} 4. e3 {[%emt 0:00:10]} Qb6 {[%emt 0:00:01]} 5. Qc1 {[%emt 0:00:20]} Nd7 {[%emt 0:00:01]} 6. Nbd2 {[%emt 0:00:05]} e6 {[%emt 0:00:02]} 7. Bd3 {[%emt 0:00:03]} Bg6 {[%emt 0:00:09]} 8. O-O {[%emt 0:00:02]} Be7 {[%emt 0:00:01]} 9. Bf4 {[%emt 0:00:01]} Ngf6 {[%emt 0:00:01]} 10. Ne5 {[%emt 0:00:09]} Nxe5 {[%emt 0:00:06]} 11. dxe5 {[%emt 0:00:01]} Nd7 {[%emt 0:00:03]} 12. Bxg6 hxg6 {[%emt 0:00:01]} 13. c4 {[%emt 0:00:14]} Nc5 {[%emt 0:00:09]} 14. Qc2 {[%emt 0:00:14]} Rd8 {[%emt 0:00:09]} 15. a3 {[%emt 0:00:04]} a5 {[%emt 0:00:01]} 16. Rab1 {[%emt 0:00:02]} a4 {[%emt 0:00:01]} 17. b4 {[%emt 0:00:12]} axb3 {[%emt 0:00:02]} 18. Nxb3 {[%emt 0:00:01]} Ne4 {[%emt 0:00:28]} 19. Nd4 {[%emt 0:01:55]} Qa6 20. cxd5 {[%emt 0:00:00]} exd5 {[%emt 0:00:27]} 21. e6 {[%emt 0:00:00]} f6 {[%emt 0:01:56]} 22. f3 {[%emt 0:00:00]} Nc5 {[%emt 0:00:00]} 23. Qxg6+ {[%emt 0:00:00]} 1-0

[Event "Austria Championship Blitz 2024"]
[Site "Innsbruck"]
[Date "2024.06.01"]
[Round "10.16"]
[White "Kondrak, Christoph"]
[Black "Schwarz, Benedikt"]
[Result "1-0"]
[ECO "A85"]
[WhiteElo "1972"]
[BlackElo "1919"]
[Annotator "RC"]
[PlyCount "61"]
[EventDate "2024.06.01"]
[EventType "swiss"]
[EventCountry "AUT"]
[SourceTitle "playchess.com"]
[Source "ChessBase"]
[SourceQuality "1"]
[TimeControl "180+2"]

1. d4 {[%emt 0:00:02]} f5 {[%emt 0:00:02]} 2. Nf3 {[%emt 0:00:01]} Nf6 {[%emt 0:00:01]} 3. Bf4 {[%emt 0:00:01]} g6 {[%emt 0:00:01]} 4. e3 {[%emt 0:00:01]} Bg7 {[%emt 0:00:01]} 5. c4 {[%emt 0:00:00]} d6 {[%emt 0:00:00]} 6. h3 {[%emt 0:00:03]} O-O {[%emt 0:00:02]} 7. Nc3 {[%emt 0:00:01]} c6 {[%emt 0:00:03]} 8. Be2 {[%emt 0:00:01]} Nbd7 {[%emt 0:00:03]} 9. Rc1 {[%emt 0:00:02]} Nh5 {[%emt 0:00:11]} 10. Bh2 {[%emt 0:00:02]} e5 {[%emt 0:00:02]} 11. O-O {[%emt 0:00:09]} f4 {[%emt 0:00:17]} 12. b4 {[%emt 0:00:20]} Qe7 {[%emt 0:00:15]} 13. c5 {[%emt 0:00:05]} dxc5 {[%emt 0:00:10]} 14. bxc5 {[%emt 0:00:10]} e4 {[%emt 0:00:10]} 15. Nd2 {[%emt 0:00:05]} f3 {[%emt 0:00:05]} 16. gxf3 {[%emt 0:00:08]} exf3 {[%emt 0:00:09]} 17. Bxf3 {[%emt 0:00:03]} Qg5+ {[%emt 0:00:12]} 18. Kh1 {[%emt 0:00:08]} Qh4 {[%emt 0:00:34]} 19. Bxh5 {[%emt 0:00:41]} gxh5 {[%emt 0:00:05]} 20. Nf3 {[%emt 0:00:14]} Qxh3 {[%emt 0:00:08]} 21. Ng5 {[%emt 0:00:02]} Qf5 {[%emt 0:00:13]} 22. Nge4 {[%emt 0:00:26]} Nf6 {[%emt 0:00:18]} 23. Nd6 {[%emt 0:00:05]} Qh3 {[%emt 0:00:07]} 24. f3 {[%emt 0:00:25]} Nd5 {[%emt 0:00:05]} 25. Nxd5 {[%emt 0:00:02]} cxd5 {[%emt 0:00:01]} 26. Qe2 {[%emt 0:00:05]} Bd7 {[%emt 0:00:10]} 27. Qg2 {[%emt 0:00:03]} Qe6 {[%emt 0:00:03]} 28. Rg1 {[%emt 0:00:04]} Qf6 {[%emt 0:00:11]} 29. Be5 {[%emt 0:00:04]} Qh4+ {[%emt 0:00:05]} 30. Qh2 {[%emt 0:00:02]} Qxh2+ {[%emt 0:00:08]} 31. Kxh2 {[%emt 0:00:29]} 1-0

[Event "Austria Championship Blitz 2024"]
[Site "Innsbruck"]
[Date "2024.06.01"]
[Round "10.17"]
[White "Wimmer, Michael"]
[Black "Mira, Helene"]
[Result "1-0"]
[ECO "B07"]
[WhiteElo "2142"]
[BlackElo "2047"]
[Annotator "RC"]
[PlyCount "63"]
[EventDate "2024.06.01"]
[EventType "swiss"]
[EventCountry "AUT"]
[SourceTitle "playchess.com"]
[Source "ChessBase"]
[SourceQuality "1"]
[TimeControl "180+2"]

1. e4 {[%emt 0:00:03]} d6 {[%emt 0:00:02]} 2. d4 {[%emt 0:00:03]} Nf6 {[%emt 0:00:01]} 3. Nc3 {[%emt 0:03:02]} c6 4. h3 {[%emt 0:00:00]} Qa5 {[%emt 0:00:02]} 5. Bd2 {[%emt 0:00:00]} Qb6 {[%emt 0:00:01]} 6. Nf3 {[%emt 0:00:00]} Nbd7 {[%emt 0:00:09]} 7. Bd3 {[%emt 0:00:00]} e5 {[%emt 0:00:01]} 8. Na4 {[%emt 0:00:00]} Qc7 {[%emt 0:00:04]} 9. O-O {[%emt 0:00:00]} b5 {[%emt 0:00:03]} 10. Nc3 {[%emt 0:00:00]} Rb8 {[%emt 0:00:02]} 11. Ne2 {[%emt 0:00:00]} g6 {[%emt 0:00:05]} 12. Ng3 {[%emt 0:00:18]} Bg7 13. a4 {[%emt 0:00:00]} b4 {[%emt 0:00:09]} 14. Re1 {[%emt 0:00:00]} O-O {[%emt 0:00:02]} 15. Qe2 {[%emt 0:00:00]} a5 {[%emt 0:00:11]} 16. Bc4 {[%emt 0:00:00]} Nb6 {[%emt 0:00:10]} 17. Bb3 {[%emt 0:00:00]} Be6 {[%emt 0:00:06]} 18. Bxe6 {[%emt 0:00:00]} fxe6 {[%emt 0:00:02]} 19. dxe5 {[%emt 0:00:00]} dxe5 {[%emt 0:00:05]} 20. Be3 {[%emt 0:00:00]} Nfd7 {[%emt 0:00:10]} 21. b3 {[%emt 0:00:00]} c5 {[%emt 0:00:27]} 22. Rad1 {[%emt 0:00:00]} c4 {[%emt 0:00:11]} 23. Qd2 {[%emt 0:00:00]} Rfd8 {[%emt 0:00:29]} 24. Qd6 {[%emt 0:00:00]} Qxd6 {[%emt 0:00:02]} 25. Rxd6 {[%emt 0:00:00]} Kf7 {[%emt 0:00:03]} 26. Red1 {[%emt 0:00:00]} Ke7 {[%emt 0:00:15]} 27. Ng5 {[%emt 0:00:00]} cxb3 {[%emt 0:00:20]} 28. cxb3 {[%emt 0:00:00]} Nxa4 {[%emt 0:00:36]} 29. bxa4 {[%emt 0:00:00]} Nf8 {[%emt 0:00:04]} 30. Bc5 {[%emt 0:00:03]} Rxd6 {[%emt 0:00:02]} 31. Bxd6+ {[%emt 0:00:02]} Kd7 {[%emt 0:00:01]} 32. Bxb8+ {[%emt 0:00:02]} 1-0

[Event "Austria Championship Blitz 2024"]
[Site "Innsbruck"]
[Date "2024.06.01"]
[Round "10.18"]
[White "Teuschler, Barbara"]
[Black "Muehlbacher, Bernhard"]
[Result "1-0"]
[ECO "B43"]
[WhiteElo "2040"]
[BlackElo "1960"]
[Annotator "RC"]
[PlyCount "54"]
[EventDate "2024.06.01"]
[EventType "swiss"]
[EventCountry "AUT"]
[SourceTitle "playchess.com"]
[Source "ChessBase"]
[SourceQuality "1"]
[TimeControl "180+2"]

1. e4 {[%emt 0:00:00]} c5 {[%emt 0:00:00]} 2. Nf3 {[%emt 0:00:02]} e6 {[%emt 0:00:00]} 3. Nc3 {[%emt 0:03:06]} a6 {[%emt 0:03:08]} 4. d4 {[%emt 0:00:00]} cxd4 5. Nxd4 {[%emt 0:00:00]} Qc7 {[%emt 0:00:00]} 6. Be3 {[%emt 0:00:00]} Bb4 {[%emt 0:00:00]} 7. Qd3 {[%emt 0:00:00]} Nf6 {[%emt 0:00:00]} 8. Bd2 {[%emt 0:00:00]} O-O {[%emt 0:00:00]} 9. Be2 {[%emt 0:00:00]} d5 {[%emt 0:00:00]} 10. exd5 {[%emt 0:00:00]} e5 {[%emt 0:00:00]} 11. Nb3 {[%emt 0:00:00]} Re8 {[%emt 0:00:00]} 12. Ne4 {[%emt 0:00:00]} Bxd2+ {[%emt 0:00:00]} 13. Nbxd2 {[%emt 0:00:00]} Nxe4 {[%emt 0:00:00]} 14. Nxe4 {[%emt 0:00:00]} f5 {[%emt 0:00:00]} 15. Ng5 {[%emt 0:00:00]} e4 {[%emt 0:00:00]} 16. Qb3 {[%emt 0:00:00]} Qd6 {[%emt 0:00:00]} 17. O-O-O {[%emt 0:00:00]} Qf4+ {[%emt 0:00:00]} 18. Kb1 {[%emt 0:00:00]} Qxg5 {[%emt 0:00:00]} 19. h4 {[%emt 0:00:00]} Qf6 {[%emt 0:00:08]} 20. h5 {[%emt 0:00:00]} h6 {[%emt 0:00:04]} 21. g4 {[%emt 0:00:00]} fxg4 {[%emt 0:00:07]} 22. Rhg1 {[%emt 0:00:00]} b5 {[%emt 0:00:10]} 23. d6+ {[%emt 0:00:00]} Kh8 {[%emt 0:00:01]} 24. Bxg4 {[%emt 0:00:00]} Bxg4 {[%emt 0:00:02]} 25. Rxg4 {[%emt 0:00:00]} Nd7 {[%emt 0:00:02]} 26. Rdg1 {[%emt 0:00:00]} Rg8 {[%emt 0:00:08]} 27. Rg6 {[%emt 0:00:00]} Qxf2 {[%emt 0:00:06]} 1-0

[Event "Austria Championship Blitz 2024"]
[Site "Innsbruck"]
[Date "2024.06.01"]
[Round "10.19"]
[White "Froewis, Annika"]
[Black "Neuschmied, Siegfried"]
[Result "0-1"]
[ECO "B07"]
[WhiteElo "2075"]
[BlackElo "2234"]
[Annotator "RC"]
[PlyCount "55"]
[EventDate "2024.06.01"]
[EventType "swiss"]
[EventCountry "AUT"]
[SourceTitle "playchess.com"]
[Source "ChessBase"]
[SourceQuality "1"]
[TimeControl "180+2"]

1. d4 {[%emt 0:00:02]} Nf6 {[%emt 0:00:01]} 2. Bf4 {[%emt 0:00:02]} g6 {[%emt 0:00:07]} 3. Nc3 {[%emt 0:00:03]} Bg7 {[%emt 0:00:05]} 4. e4 {[%emt 0:00:01]} d6 {[%emt 0:00:01]} 5. Qd2 {[%emt 0:00:02]} c6 {[%emt 0:00:08]} 6. O-O-O {[%emt 0:00:14]} Qa5 {[%emt 0:00:07]} 7. Kb1 {[%emt 0:00:05]} Nbd7 {[%emt 0:00:15]} 8. h4 {[%emt 0:00:16]} h5 {[%emt 0:00:05]} 9. Nf3 {[%emt 0:00:11]} O-O {[%emt 0:02:31]} 10. Ng5 {[%emt 0:02:26]} e5 {[%emt 0:00:00]} 11. dxe5 {[%emt 0:00:00]} dxe5 {[%emt 0:00:00]} 12. Be3 {[%emt 0:00:00]} Ng4 {[%emt 0:00:00]} 13. Bc4 {[%emt 0:00:00]} Nxe3 {[%emt 0:00:00]} 14. fxe3 {[%emt 0:00:00]} Nf6 {[%emt 0:00:00]} 15. Qd6 {[%emt 0:00:00]} Bg4 {[%emt 0:00:00]} 16. Rdf1 {[%emt 0:00:00]} Qd8 {[%emt 0:00:00]} 17. Qb4 {[%emt 0:00:00]} b5 {[%emt 0:00:00]} 18. Bb3 {[%emt 0:00:00]} a5 {[%emt 0:00:00]} 19. Qc5 {[%emt 0:00:09]} Rc8 {[%emt 0:00:00]} 20. Bxf7+ {[%emt 0:00:05]} Rxf7 {[%emt 0:00:00]} 21. Nxf7 {[%emt 0:00:01]} Kxf7 {[%emt 0:00:00]} 22. Qxe5 {[%emt 0:00:02]} Qe7 {[%emt 0:00:00]} 23. Qf4 {[%emt 0:00:03]} Kg8 {[%emt 0:00:00]} 24. e5 {[%emt 0:00:02]} Nd5 {[%emt 0:00:00]} 25. Nxd5 cxd5 {[%emt 0:00:00]} 26. Qd4 {[%emt 0:00:07]} Qxe5 {[%emt 0:00:00]} 27. Qxe5 {[%emt 0:00:02]} Bxe5 {[%emt 0:00:00]} 28. Rf2 {[%emt 0:00:00]} 0-1

[Event "Austria Championship Blitz 2024"]
[Site "Innsbruck"]
[Date "2024.06.01"]
[Round "10.20"]
[White "Schnegg, Anna-Lena"]
[Black "Babinetz, Rainer"]
[Result "1-0"]
[ECO "A22"]
[WhiteElo "2124"]
[BlackElo "1967"]
[Annotator "RC"]
[PlyCount "121"]
[EventDate "2024.06.01"]
[EventType "swiss"]
[EventCountry "AUT"]
[SourceTitle "playchess.com"]
[Source "ChessBase"]
[SourceQuality "1"]
[TimeControl "180+2"]

1. c4 {[%emt 0:00:01]} e5 {[%emt 0:00:01]} 2. Nc3 {[%emt 0:00:01]} d6 {[%emt 0:00:01]} 3. g3 {[%emt 0:00:01]} c6 {[%emt 0:00:02]} 4. Bg2 {[%emt 0:00:01]} Nf6 {[%emt 0:00:02]} 5. e4 {[%emt 0:00:03]} Be7 {[%emt 0:00:07]} 6. Nge2 {[%emt 0:00:02]} Qc7 {[%emt 0:00:01]} 7. O-O {[%emt 0:00:03]} O-O {[%emt 0:00:03]} 8. b3 {[%emt 0:00:04]} Nbd7 {[%emt 0:00:05]} 9. Bb2 {[%emt 0:00:04]} b6 {[%emt 0:00:06]} 10. d4 {[%emt 0:00:04]} Bb7 {[%emt 0:00:02]} 11. a4 {[%emt 0:00:11]} a6 {[%emt 0:00:06]} 12. Re1 {[%emt 0:00:24]} Rad8 {[%emt 0:00:01]} 13. d5 {[%emt 0:00:06]} c5 {[%emt 0:00:05]} 14. Qd3 {[%emt 0:00:12]} Rfe8 {[%emt 0:00:03]} 15. Nd1 {[%emt 0:00:06]} Nf8 {[%emt 0:00:01]} 16. Ne3 {[%emt 0:00:02]} Bc8 {[%emt 0:00:01]} 17. a5 {[%emt 0:00:04]} Ng6 {[%emt 0:00:19]} 18. Bc3 {[%emt 0:00:12]} b5 {[%emt 0:00:32]} 19. cxb5 {[%emt 0:00:21]} axb5 {[%emt 0:00:02]} 20. Qxb5 {[%emt 0:00:03]} Bd7 {[%emt 0:00:01]} 21. Qd3 {[%emt 0:00:12]} Rb8 {[%emt 0:00:01]} 22. Reb1 {[%emt 0:00:06]} Bb5 {[%emt 0:00:03]} 23. Nc4 {[%emt 0:00:11]} Nd7 {[%emt 0:00:16]} 24. Qc2 {[%emt 0:00:02]} Rf8 {[%emt 0:00:15]} 25. Ne3 {[%emt 0:00:04]} Bg5 {[%emt 0:00:11]} 26. Nf5 {[%emt 0:00:18]} Ne7 {[%emt 0:00:04]} 27. Bh3 {[%emt 0:00:20]} g6 {[%emt 0:00:06]} 28. Nxe7+ {[%emt 0:00:05]} Bxe7 {[%emt 0:00:01]} 29. Ra2 {[%emt 0:00:20]} Nf6 {[%emt 0:00:07]} 30. Rba1 {[%emt 0:00:01]} Ra8 {[%emt 0:00:04]} 31. Be1 {[%emt 0:00:06]} Ra6 {[%emt 0:00:03]} 32. Nc3 {[%emt 0:00:02]} Bd7 {[%emt 0:00:07]} 33. Bf1 {[%emt 0:00:01]} Raa8 {[%emt 0:00:03]} 34. a6 {[%emt 0:00:03]} Ng4 {[%emt 0:00:09]} 35. Bb5 {[%emt 0:00:03]} f5 {[%emt 0:00:03]} 36. Bxd7 {[%emt 0:00:03]} Qxd7 {[%emt 0:00:01]} 37. exf5 {[%emt 0:00:03]} gxf5 {[%emt 0:00:02]} 38. Qe2 {[%emt 0:00:07]} f4 {[%emt 0:00:08]} 39. f3 {[%emt 0:00:04]} Ne3 {[%emt 0:00:02]} 40. Bf2 {[%emt 0:00:00]} Nf5 {[%emt 0:00:14]} 41. Ne4 {[%emt 0:00:02]} fxg3 {[%emt 0:00:03]} 42. hxg3 {[%emt 0:00:01]} Nd4 {[%emt 0:00:03]} 43. Bxd4 {[%emt 0:00:02]} cxd4 {[%emt 0:00:01]} 44. Kg2 {[%emt 0:00:01]} Qf5 {[%emt 0:00:05]} 45. Rh1 {[%emt 0:00:02]} Bg5 {[%emt 0:00:02]} 46. Rh3 {[%emt 0:00:01]} Be3 {[%emt 0:00:03]} 47. Ra1 {[%emt 0:00:01]} Rf7 {[%emt 0:00:03]} 48. b4 {[%emt 0:00:02]} Rfa7 {[%emt 0:00:01]} 49. b5 {[%emt 0:00:01]} Qd7 {[%emt 0:00:02]} 50. Qc4 {[%emt 0:00:02]} Rc8 {[%emt 0:00:01]} 51. Qb3 {[%emt 0:00:03]} d3 {[%emt 0:00:17]} 52. Nf6+ {[%emt 0:00:01]} Kg7 {[%emt 0:00:03]} 53. Nxd7 Rxd7 {[%emt 0:00:01]} 54. Qxd3 {[%emt 0:00:02]} Kg8 {[%emt 0:00:02]} 55. a7 {[%emt 0:00:01]} Bxa7 {[%emt 0:00:02]} 56. Rah1 {[%emt 0:00:02]} Rcc7 {[%emt 0:00:01]} 57. Rh4 {[%emt 0:00:04]} Bd4 {[%emt 0:00:01]} 58. Rg4+ {[%emt 0:00:01]} Kh8 {[%emt 0:00:02]} 59. Qf5 {[%emt 0:00:01]} Rc2+ {[%emt 0:00:01]} 60. Kh3 {[%emt 0:00:01]} Rcc7 {[%emt 0:00:05]} 61. Qf8# {[%emt 0:00:17]} 1-0

[Event "Austria Championship Blitz 2024"]
[Site "Innsbruck"]
[Date "2024.06.01"]
[Round "10.21"]
[White "Kummer, Helmut"]
[Black "Guba, Viktor"]
[Result "0-1"]
[ECO "E73"]
[WhiteElo "2212"]
[BlackElo "1891"]
[Annotator "RC"]
[PlyCount "42"]
[EventDate "2024.06.01"]
[EventType "swiss"]
[EventCountry "AUT"]
[SourceTitle "playchess.com"]
[Source "ChessBase"]
[SourceQuality "1"]
[TimeControl "180+2"]

1. d4 {[%emt 0:00:03]} Nf6 {[%emt 0:00:01]} 2. c4 {[%emt 0:00:01]} g6 {[%emt 0:00:01]} 3. Nc3 {[%emt 0:00:02]} Bg7 {[%emt 0:00:01]} 4. e4 {[%emt 0:00:01]} O-O {[%emt 0:00:01]} 5. Be2 {[%emt 0:00:01]} d6 {[%emt 0:00:02]} 6. Bg5 {[%emt 0:00:02]} Na6 {[%emt 0:00:03]} 7. Qd2 {[%emt 0:00:03]} e5 {[%emt 0:00:03]} 8. d5 {[%emt 0:00:01]} Nc5 {[%emt 0:00:19]} 9. f3 {[%emt 0:00:03]} a5 {[%emt 0:00:22]} 10. g4 {[%emt 0:00:12]} h6 {[%emt 0:00:17]} 11. Be3 {[%emt 0:00:10]} Nfd7 {[%emt 0:00:32]} 12. h4 {[%emt 0:00:09]} Kh7 {[%emt 0:00:06]} 13. O-O-O {[%emt 0:00:05]} Rh8 {[%emt 0:00:09]} 14. Nh3 {[%emt 0:00:19]} Kg8 {[%emt 0:00:16]} 15. Nf2 {[%emt 0:00:11]} b6 {[%emt 0:00:10]} 16. Kb1 {[%emt 0:00:18]} Ba6 {[%emt 0:00:06]} 17. Rdg1 {[%emt 0:00:07]} Rb8 {[%emt 0:00:23]} 18. Nfd1 {[%emt 0:00:12]} Qc8 {[%emt 0:00:17]} 19. Bf2 {[%emt 0:00:22]} c6 {[%emt 0:00:04]} 20. dxc6 {[%emt 0:00:08]} Qxc6 {[%emt 0:00:01]} 21. Qxd6 {[%emt 0:00:03]} Qxd6 {[%emt 0:00:06]} 0-1

[Event "Austria Championship Blitz 2024"]
[Site "Innsbruck"]
[Date "2024.06.01"]
[Round "10.22"]
[White "Hatzl, Johannes"]
[Black "Neubauer, Anton"]
[Result "1-0"]
[ECO "D00"]
[WhiteElo "2074"]
[BlackElo "1857"]
[Annotator "RC"]
[PlyCount "27"]
[EventDate "2024.06.01"]
[EventType "swiss"]
[EventCountry "AUT"]
[SourceTitle "playchess.com"]
[Source "ChessBase"]
[SourceQuality "1"]
[TimeControl "180+2"]

1. d4 {[%emt 0:00:01]} d5 {[%emt 0:00:02]} 2. Bf4 {[%emt 0:00:01]} e6 {[%emt 0:00:00]} 3. e3 {[%emt 0:00:01]} a6 {[%emt 0:00:01]} 4. Bd3 {[%emt 0:00:07]} Nc6 {[%emt 0:00:01]} 5. c3 {[%emt 0:00:01]} Bd7 {[%emt 0:00:03]} 6. Nf3 {[%emt 0:00:02]} f6 {[%emt 0:00:01]} 7. Nbd2 {[%emt 0:00:03]} Qb8 {[%emt 0:00:14]} 8. e4 {[%emt 0:00:09]} Nge7 {[%emt 0:00:17]} 9. O-O {[%emt 0:00:07]} Ng6 {[%emt 0:00:01]} 10. Bg3 {[%emt 0:00:01]} Bd6 {[%emt 0:00:20]} 11. e5 {[%emt 0:00:22]} fxe5 {[%emt 0:00:02]} 12. Nxe5 {[%emt 0:00:12]} Ngxe5 {[%emt 0:00:08]} 13. dxe5 {[%emt 0:00:07]} Nxe5 {[%emt 0:00:30]} 14. Bxe5 {[%emt 0:00:06]} 1-0

[Event "Austria Championship Blitz 2024"]
[Site "Innsbruck"]
[Date "2024.06.01"]
[Round "11.1"]
[White "Blohberger, Felix"]
[Black "Schwabeneder, Florian"]
[Result "1-0"]
[ECO "B07"]
[WhiteElo "2506"]
[BlackElo "2405"]
[Annotator "RC"]
[PlyCount "70"]
[EventDate "2024.06.01"]
[EventType "swiss"]
[EventCountry "AUT"]
[SourceTitle "playchess.com"]
[Source "ChessBase"]
[SourceQuality "1"]
[TimeControl "180+2"]

1. d4 {[%emt 0:00:01]} d6 {[%emt 0:00:01]} 2. e4 {[%emt 0:00:02]} Nf6 {[%emt 0:00:02]} 3. Bd3 {[%emt 0:00:01]} g6 {[%emt 0:00:09]} 4. Nf3 {[%emt 0:00:01]} Bg7 {[%emt 0:00:02]} 5. O-O {[%emt 0:00:02]} O-O {[%emt 0:00:02]} 6. c3 {[%emt 0:00:02]} Nc6 {[%emt 0:00:08]} 7. h3 {[%emt 0:00:14]} Nd7 {[%emt 0:00:07]} 8. Be3 {[%emt 0:00:18]} e5 {[%emt 0:00:02]} 9. Nbd2 {[%emt 0:00:07]} h6 {[%emt 0:00:05]} 10. Nc4 {[%emt 0:00:36]} a5 {[%emt 0:00:16]} 11. Qd2 {[%emt 0:00:12]} Kh7 {[%emt 0:00:03]} 12. a4 {[%emt 0:00:06]} b6 {[%emt 0:00:13]} 13. Rfe1 {[%emt 0:00:06]} Ba6 {[%emt 0:00:05]} 14. Rad1 {[%emt 0:00:24]} exd4 {[%emt 0:00:22]} 15. cxd4 {[%emt 0:00:09]} Nb4 {[%emt 0:00:02]} 16. b3 {[%emt 0:00:19]} d5 {[%emt 0:00:35]} 17. exd5 {[%emt 0:00:02]} Nxd3 {[%emt 0:00:03]} 18. Qxd3 {[%emt 0:00:01]} Nf6 {[%emt 0:00:01]} 19. d6 {[%emt 0:00:12]} cxd6 {[%emt 0:00:02]} 20. d5 {[%emt 0:00:01]} Nd7 {[%emt 0:00:08]} 21. Qb1 {[%emt 0:00:07]} Nc5 {[%emt 0:00:04]} 22. Rc1 {[%emt 0:00:14]} Re8 {[%emt 0:00:08]} 23. h4 {[%emt 0:00:08]} Kg8 {[%emt 0:00:10]} 24. Nd4 {[%emt 0:00:10]} Bxc4 {[%emt 0:00:24]} 25. Rxc4 {[%emt 0:00:03]} Qxh4 {[%emt 0:00:26]} 26. Ne6 {[%emt 0:00:03]} Qh5 {[%emt 0:00:03]} 27. Nc7 {[%emt 0:00:06]} Rxe3 {[%emt 0:00:08]} 28. Rxe3 {[%emt 0:00:02]} Rc8 {[%emt 0:00:00]} 29. Re8+ {[%emt 0:00:03]} Rxe8 {[%emt 0:00:02]} 30. Nxe8 {[%emt 0:00:01]} Qxd5 {[%emt 0:00:02]} 31. Nxg7 Kxg7 {[%emt 0:00:00]} 32. Qb2+ {[%emt 0:00:04]} Kg8 {[%emt 0:00:07]} 33. Qc2 {[%emt 0:00:05]} Qe5 {[%emt 0:00:02]} 34. Qd1 {[%emt 0:00:02]} d5 {[%emt 0:00:02]} 35. Rd4 {[%emt 0:00:03]} Nxb3 {[%emt 0:00:06]} 1-0